Cogmind - Beta 15 @@@ ROGUE MODE // 2025.08.26 @ 00:17:42 Player: Mogwok Wargfriend Result: Destroyed by 2X-WTF(R) with Subdweller Machine Gun Performance ------------- Evolutions (0) 0 Regions Visited (2) 400 Robots Destroyed (58) 290 Value Destroyed (1311) 1311 Prototype IDs (11) 220 Alien Tech Used (0) 0 Bonus (29) 29 TOTAL SCORE: 2250 Bonus ------- High Alert Combat Kills 29 Cogmind --------- Core Integrity 0/250 Matter 250/300 Energy 178/180 System Corruption 0% Temperature Cool (0) Movement Rolling (140) Ox4 Location -10/Subcaves Parts ------- > --- POWER (1) -------- Meta Core > --- PROPULSION (2+1) - Light Treads Wheel > --- UTILITY (2+1) ---- Large Storage Unit Scrap Shield (+) > --- WEAPON (2+1) ----- Assault Rifle Assault Rifle > --- INVENTORY (15) --- Ion Engine Light Treads Light Treads Wheel Subdweller Monowheel High-capacity Matter Pod (200) Sensor Array Makeshift Light Armor Plating Subdweller Beam Cannon Grenade Launcher Grenade Launcher Grenade Launcher Grenade Launcher Mining Laser Scrap Shield Fragment (46) Peak State ------------ > --- POWER ------------ Meta Core > --- PROPULSION ------- Light Treads Compact Wheel > --- UTILITY ---------- Large Storage Unit Makeshift Light Armor Plating > --- WEAPON ----------- Subdweller Beam Cannon Grenade Launcher > --- INVENTORY -------- Light Treads Light Treads Wheel Wheel Subdweller Monowheel High-capacity Matter Pod Sensor Array Light Armor Plating Assault Rifle Assault Rifle Grenade Launcher Grenade Launcher Grenade Launcher Grenade Launcher Mining Laser [Rating: 24] Favorites ----------- Power Ion Engine Engine Ion Engine Power Core Meta Core Propulsion Light Treads Treads Light Treads Wheel Compact Wheel Utility Large Storage Unit Device Seismic Detector Storage Large Storage Unit Protection Light Armor Plating Weapon Grenade Launcher Energy Gun Medium Laser Energy Cannon Subdweller Beam Cannon Ballistic Gun Assault Rifle Launcher Grenade Launcher Build | -11 -10 -10 ------- Run | Yrd Mat Sub Slots Evolved . | . . . Power . | . . . Propulsion . | . . . Utility . | . . . Weapon . | . . . Parts Attached 26 | 8 8 10 Power 3 | 1 1 1 Engine 2 | 1 1 . Core 1 | . . 1 Reactor . | . . . Propulsion 5 | 2 2 1 Treads 3 | 1 2 . Leg . | . . . Wheel 2 | 1 . 1 Hover . | . . . Flight . | . . . Utility 8 | 3 2 3 Device 3 | 2 . 1 Storage 2 | 1 1 . Processor . | . . . Hackware . | . . . Protection 3 | . 1 2 Artifact . | . . . Weapon 10 | 2 3 5 Energy Gun 1 | 1 . . Energy Cannon 1 | . . 1 Ballistic Gun 2 | 1 . 1 Ballistic Cannon . | . . . Launcher 6 | . 3 3 Special Weapon . | . . . Impact Weapon . | . . . Slashing Weapon . | . . . Piercing Weapon . | . . . Special Melee Weapon . | . . . Unidentified Prototypes . | . . . Parts Lost 4 | . 2 2 Power 1 | . 1 . Propulsion 2 | . 1 1 Utility . | . . . Weapon 1 | . . 1 Highest Loss Streak 1 | . 1 1 To Critical Strikes . | . . . Average Backups 11 | 4 10 14 Power . | . . . Propulsion 3 | 2 2 4 Utility 1 | . 1 2 Weapon 5 | 1 5 6 Tool/Special . | . . . Unused Backups 16 | 1 5 10 Power . | . . . Propulsion 10 | . 5 5 Utility 2 | . . 2 Weapon 4 | 1 . 3 Tool/Special . | . . . Average Slot Usage (%) 88 | . 100 78 Engine 8 | . 14 4 Core 3 | . . 7 Treads 12 | . 14 11 Wheel 12 | . 14 11 Device 3 | . 8 . Storage 12 | . 14 11 Protection 8 | . 5 11 Energy Gun 3 | . 7 . Launcher 20 | . 19 21 Peak Build Rating 24 | 9 9 24 Average Rating 13 | 5 8 19 On Entrance 5 | . 8 8 Naked Turns . | . . . Heaviest Build 50 | 15 34 50 Greatest Support 16 | 16 16 16 Greatest Overweight (x) 4 | . 2 4 Average Overweight (x) 1 | . . 3 Largest Inventory Capacity 15 | 8 15 15 Average Capacity 13 | 7 12 15 Most Carried 15 | 8 15 15 Average Carried 12 | 5 10 14 Final Capacity 15 | 8 15 15 Final Carried 15 | 8 15 15 Class Distribution -------------------- 100% | Mutant Dominant Class ---------------- Mutant | -10/Materials Mutant | -10/Subcaves Resources | -11 -10 -10 ----------- Run | Yrd Mat Sub Matter Collected 1818 | 358 699 761 Remotely . | . . . Salvage Created 1086 | 248 572 266 Parts 92 | 24 42 26 Haulers Intercepted 1 | . 1 . Recyclers Shooed 2 | . 2 . Parts Field Recycled . | . . . Retrieved Matter . | . . . Parts Self-Destructed 17 | . . 17 Prevented . | . . . Kills | -11 -10 -10 ------- Run | Yrd Mat Sub Combat Hostiles Destroyed 34 | . 21 13 Guns 1 | . 1 . AOE 33 | . 20 13 Classes Destroyed 12 | 3 7 2 Worker 4 | 2 2 . Builder 2 | . 2 . Tunneler 8 | 8 . . Hauler 1 | . 1 . Recycler 2 | 1 1 . Operator 2 | . 2 . Turret 2 | . . 2 Watcher 3 | . 3 . Swarmer 10 | . 6 4 Grunt 12 | . 12 . Artisan 1 | . . 1 Subdweller 12 | . 3 9 Best Kill Streak 7 | 4 7 4 Combat Bots Only 4 | . 4 4 Max Kills in Single Turn 3 | 1 2 3 Gunslinging . | . . . Exploded 3 | . 2 3 Melee . | . . . Uniques/NPCs Destroyed . | . . . Combat | -11 -10 -10 -------- Run | Yrd Mat Sub Hostile Shots Fired 128 | . 66 62 Missed 49 | . 29 20 Hits 79 | . 37 42 Projectile 79 | . 37 42 Critical Strikes 1 | . 1 . Damage Taken 1165 | . 518 647 Core 273 | . 154 119 Absorbed by Shields . | . . . Core Remaining (%) 100 | 100 . . Volleys Fired 121 | 26 58 37 Largest 2 | 2 2 2 Hottest 80 | 70 80 80 Shots Fired 199 | 52 89 58 Gun 113 | 52 46 15 Cannon 2 | . . 2 Launcher 84 | . 43 41 Special . | . . . Kinetic 41 | 26 . 15 Thermal 74 | 26 46 2 Explosive 84 | . 43 41 Electromagnetic . | . . . Robot Hit Streak 18 | 8 8 18 Robot Miss Streak 6 | 3 6 2 Penetration Max . | . . . Secondary Targets . | . . . Shots Hit Robots 97 | 34 38 25 Core Hits 101 | 12 61 28 Critical Kills . | . . . Critical Parts Destroyed . | . . . Critical Strikes 4 | 1 3 . Burn 4 | 1 3 . Melee Attacks . | . . . Impact . | . . . Slashing . | . . . Piercing . | . . . Sneak Attacks . | . . . Combat Hostiles . | . . . Follow-up Attacks . | . . . Damage Inflicted 4293 | 437 2373 1483 Guns 859 | 437 320 102 Cannons . | . . . Explosions 3434 | . 2053 1381 Melee . | . . . Ramming . | . . . Kinetic 286 | 184 . 102 Thermal 573 | 253 320 . Explosive 3434 | . 2053 1381 Electromagnetic . | . . . Impact . | . . . Slashing . | . . . Piercing . | . . . Highest Corruption . | . . . Average Corruption . | . . . Corruption Purged . | . . . Corruption Blocked . | . . . Overload Shots . | . . . Overflow Damage 26 | . 13 13 Projectiles . | . . . Explosions 26 | . 13 13 Melee . | . . . Knockbacks . | . . . Impact . | . . . Kinetic . | . . . Secondary . | . . . Self-Inflicted Damage 185 | . 88 97 Shots 12 | . 5 7 Rammed . | . . . Targets Rammed . | . . . Kicked . | . . . Crushed . | . . . Highest Temperature 120 | 88 120 20 Average Temperature 27 | 27 28 10 Received Heat Transfer 246 | . 150 96 Siege Activations . | . . . Martial Activations . | . . . Shielding Activations . | . . . Robots Disrupted . | . . . Combat Hostiles . | . . . Robots Corrupted . | . . . Combat Hostiles . | . . . Parts Fried . | . . . Impact Corruptions . | . . . Robots Melted . | . . . Combat Hostiles . | . . . Parts Melted 1 | 1 . . Heat Transferred 1961 | 814 1147 . Parts Sabotaged . | . . . Parts Stolen . | . . . Parts Stripped . | . . . Power Chain Reactions . | . . . Alert | -11 -10 -10 ------- Run | Yrd Mat Sub Maximum Alert Level 2 | . 2 . Low Security (%) 37 | 100 25 . Level 1 40 | . 48 . Level 2 21 | . 25 . Level 3 . | . . . Level 4 . | . . . Level 5 . | . . . High Security . | . . . Max Security . | . . . Peak Influence 481 | 15 481 . Initial . | . . . Average 237 | 2 282 . Influence Increases 1083 | 55 863 165 Destroy 0b10 Robot/C 480 | . 360 120 Destroy 0b10 Robot/NC 110 | 55 55 . Destroy Leader 98 | . 98 . Successful Hack 11 | . 11 . Disable Machine 90 | . 90 . Destroy Structure 204 | . 204 . Lose Combat Pursuer 90 | . 45 45 Influence Decreases 1083 | 55 442 586 Entered New Map 203 | . . 203 Time Decay 850 | 55 422 373 Lost Part 30 | . 20 10 Squads Dispatched 4 | . 4 . Investigation 1 | . 1 . Extermination . | . . . Reinforcement 3 | . 3 . Assault . | . . . Garrison . | . . . Intercept . | . . . Searches Triggered . | . . . Construction Impeded . | . . . Haulers Reinforced . | . . . Active Scanning Responses . | . . . Cargo Convoy Interrupts . | . . . Stealth | -11 -10 -10 --------- Run | Yrd Mat Sub Distress Signals 2 | . 2 . Communications Jammed . | . . . Distress Signals . | . . . Times Spotted 46 | . 29 17 Peak Tracking Total 6 | . 5 6 Tactical Retreats 3 | . 1 2 Traps | -11 -10 -10 ------- Run | Yrd Mat Sub Traps Triggered 2 | . 1 1 Indirectly . | . . . Trap Hack Attempts . | . . . Triggered . | . . . Disarmed . | . . . Reprogrammed . | . . . Reused . | . . . Traps Extracted . | . . . Installed . | . . . Triggered . | . . . Machines | -11 -10 -10 ---------- Run | Yrd Mat Sub Machines Disabled 9 | . 6 3 Max in Single Turn 2 | . 2 1 Machines Repaired . | . . . Machines Dismantled . | . . . Machines Sabotaged . | . . . Overloaded Fab Kills . | . . . Hacking | -11 -10 -10 --------- Run | Yrd Mat Sub Machines Accessed 8 | . 7 1 Terminals 5 | . 5 . Fabricators . | . . . Repair Stations . | . . . Recycling Units 2 | . 2 . Scanalyzers . | . . . Garrison Access . | . . . Total Hacks 23 | . 22 1 Successful 9 | . 8 1 Failed 14 | . 14 . Catastrophic 3 | . 3 . Database Lockouts . | . . . Manual 18 | . 18 . Terminals 17 | . 17 . Fabricators . | . . . Repair Stations . | . . . Recycling Units 5 | . 5 . Scanalyzers . | . . . Garrison Access . | . . . Terminal Hacks 5 | . 4 1 Part Schematic 1 | . 1 . Robot Analysis 2 | . 2 . Locate Traps 1 | . 1 . Proto ID Catalog 1 | . . 1 Fabricator Hacks . | . . . Repair Station Hacks . | . . . Recycling Unit Hacks . | . . . Scanalyzer . | . . . Garrison Access Hacks . | . . . Unauthorized Hacks 4 | . 4 . Terminals 2 | . 2 . Botnet 2 | . 2 . Fabricators . | . . . Repair Stations . | . . . Recycling Units 2 | . 2 . Reject 2 | . 2 . Scanalyzers . | . . . Garrison Access . | . . . Data Cores Recovered . | . . . Used . | . . . Hacking Detections 7 | . 7 . Full Trace Events 2 | . 2 . Feedback Events . | . . . Feedback Blocked . | . . . Robot Schematics Acquired . | . . . Robots Built . | . . . Authchips . | . . . Time . | . . . Total Robot Build Rating . | . . . Part Schematics Acquired 1 | . 1 . Parts Built . | . . . Authchips . | . . . Time . | . . . Total Part Build Rating . | . . . Parts Repaired . | . . . Time . | . . . Parts Recycled . | . . . Recycled Matter . | . . . Retrieved Matter . | . . . Retrieved Components . | . . . Parts Scanalyzed . | . . . Part Schematics Acquired . | . . . Parts Damaged . | . . . Bothacking | -11 -10 -10 ------------ Run | Yrd Mat Sub Used RIF Installer . | . . . Robots Hacked . | . . . Non-combat . | . . . Combat . | . . . Robot Hacks Applied . | . . . Relay Couplers Released . | . . . Fabnet Peak Effective % . | . . . Robots Rewired . | . . . Allies Hacked . | . . . Hacks Repelled . | . . . Allies | -11 -10 -10 -------- Run | Yrd Mat Sub Total Allies . | . . . Largest Group . | . . . Highest-Rated Group . | . . . Highest-Rated Ally . | . . . Total Orders . | . . . Ally Attacks . | . . . Total Damage . | . . . Kills . | . . . Allies Corrupted . | . . . Allies Melted . | . . . Intel | -11 -10 -10 ------- Run | Yrd Mat Sub Active Infowar (turns) 765 | 16 749 . Terrain 9 | 9 . . Seismic 756 | 7 749 . Robot Analysis Total 2 | . 2 . Derelict Logs Recovered 1 | . . 1 Drone Launches . | . . . Drone Recoveries . | . . . Exploration | -11 -10 -10 ------------- Run | Yrd Mat Sub Turns Passed 3039 | 240 1243 1556 Spaces Moved 2117 | 146 906 1065 Core 9 | 9 . . Treads . | . . . Legs . | . . . Wheels 2108 | 137 906 1065 Hover . | . . . Flight . | . . . Fastest Speed 50 | 50 100 115 Average Speed 123 | 96 114 133 Slowest Speed 140 | 100 130 140 Overloaded Moves . | . . . Propulsion Burnouts . | . . . Robots Hopped . | . . . Potential Cave-ins . | . . . Cave-ins Triggered . | . . . Exploration Rate (%) 54 | 5 99 58 Regions Visited 2 Branch Regions 1 Pre-discovered Areas 1 | . . 1 Known Exits Taken . | . . . Unknown Exits Taken 2 | 1 1 . Scrap Searched 9 | . . 9 Spaces Dug 9 | . . 9 Terrain Destroyed 407 | . 249 158 Melee . | . . . Projectile . | . . . AOE 407 | . 249 158 Terrain Rammed . | . . . Walls Destroyed . | . . . Machines Disabled . | . . . Actions | -11 -10 -10 --------- Run | Yrd Mat Sub Total 2358 | 189 1030 1139 Wait 24 | . 21 3 Move 2115 | 145 905 1065 Hop . | . . . Pick Up 35 | 8 21 6 Fast Attach 14 | 8 2 4 Attach 5 | . 3 2 Detach 3 | 1 . 2 Swap 13 | . 5 8 Drop 24 | 1 15 8 Fire 121 | 26 58 37 Melee . | . . . Ram . | . . . Kick . | . . . Crush . | . . . Escape Stasis . | . . . Rewire . | . . . Trap . | . . . Miscellaneous 4 | . . 4 Route ------- -11/Scrapyard -10/Materials (discovered 5 exits: [*Mat x3] / [*Min] / *Sub) -10/Subcaves (discovered 3 exits: [*Mat x2] / [*Rec]) History --------- Turn | Location | Event 24 | -11/Scrapyard | Discovered new exit (range 16) 241 | -11/Scrapyard | Entered Materials 308 | -10/Materials | Build established: Mutant 443 | -10/Materials | Discovered new exit (range 15) 602 | -10/Materials | Discovered new exit (range 14) 747 | -10/Materials | Discovered new exit (range 16) 841 | -10/Materials | Derelicts attacked the area 933 | -10/Materials | Discovered new exit (range 15) 1166 | -10/Materials | Discovered new exit (range 8) 1189 | -10/Materials | Core integrity fell below 50% 1484 | -10/Materials | Entered Subcaves 1520 | -10/Subcaves | Discovered new exit (range 10) 1558 | -10/Subcaves | Shifting Twisted Machinery released Sub. Monowheel 1577 | -10/Subcaves | Ambushed by Subdweller buried in earth 1785 | -10/Subcaves | Core integrity fell below 20% 1835 | -10/Subcaves | Visited 4L-MR0's lab 1942 | -10/Subcaves | Found Meta Core 1944 | -10/Subcaves | Attached Meta Core, gained temporary slots: Propulsion, Utility, Weapon 2128 | -10/Subcaves | Ambushed by angry Subdweller bent on revenge 2150 | -10/Subcaves | Discovered new exit (range 7) 2248 | -10/Subcaves | Learned location of Zion (-7) 2837 | -10/Subcaves | Discovered new exit (range 9) 2900 | -10/Subcaves | Disturbed a concealed Subdweller 3021 | -10/Subcaves | Disturbed a concealed Subdweller 3040 | -10/Subcaves | Destroyed by 2X-WTF(R) with Subdweller Machine Gun Last Messages --------------- 02944_ Found Hvy. Riot Gun. 02944_ Found Sub. Laser. 02944_ Found 53 Matter. 02945_ Acquired 53 matter. 03014_ Searching scrap... 03014_ Found Sub. Power Source. 03014_ Found 65 Matter. 03015_ Acquired 65 matter. 03018_ Searching scrap... 03018_ Found Mak. Axe. 03018_ Found 43 Matter. 03019_ Acquired 43 matter. 03019_ Searching scrap... 03019_ Found Flamer. 03019_ Found 61 Matter. 03020_ Acquired 45 matter. 03021_ 2X-WTF(R) angrily emerges from the Twisted Machinery. 03022_ Scrap Shield Fragment affixed to Scrap Shield (+23). Map ----- +----------------------------------------------------+ | ?????????????????????????????????????????????????? | | ?????????????????????????????????????????????????? | | ?????????????????????????????????????????????????? | | ?????????????????????????????????????????????????? | | ?????????????????????????????????????????????????? | | ?????????????????????????????????????????????????? | | ?????????????????????????????????????????????????? | | ?????????????????????????????????????????????????? | | ?????????????????????????????????????????????????? | | ?????????????????????????????????????????????????? | | ?????????????????????????????????????????????????? | | ?????????????????????????????????????????????????? | | ?????????????????????????????????????????????????? | | ?????????????????????????????????????????????????? | | ?????????????????????????????????????????????????? | | ?????????????????????????????????????????????????? | | ?????????????????????????????????????????????????? | | ?????????????????????????????????????????????????? | | ?????????????????????????????????????????????????? | | ?????????????????????????????????????????????????? | | ?????????????????????????????????????????????????? | | ?????????????????????????????????????????????????? | | ?????????????????????????????????????????????????? | | ????????????????????????#######??????????????????? | | ????????? ??????????????#/%# #??????????????????? | | ????????? ??####???????#@R| $#??????????????????? | | ?????????? ## #??????##<&###??????????????????? | | ??????????? ??????### #???????????????????? | | ???????????? ??????# #*######???????????????? | | ?????????????? ??????# " < # ##??????????????? | | ??????????????? ???#### #??????????????? | | ??????????? ????# #### ## #??????????????? | | ?????????## ??## ## ##??????????????? | | ?????????# ### ##???????????????? | | ??????????# ##????????????????? | | ?????????## ####?????????????????? | | ?????????# ###????????????????????? | | ?????????###### ##??????????????????????? | | ??????????????## #???????????????????????? | | ??????????????## ## ##??????????????????????? | | ??????????????# ## ###????????????????????? | | ??????????????# ## #????????????????????? | | ???????????#### ###????????????????????? | | ???????????# ##??????????????????????? | | ??????????## # #???????????????????????? | | ?????????## ### #??????????????????????? | | ?????????# ##?# ##??????????????????????? | | ?????????## #??# #???????????????????????? | | ??????????## ##??? ???????????????????????? | | ???????????# ##???? ##??????????????????????? | +----------------------------------------------------+ Best States ------------- Heat Dissipation 25 Energy Generation 17 Energy Capacity 250 Matter Stores 300 Matter Capacity 300 Sight Range 16 Terrain Scan Range 16 Terrain Scan Density 10 Armor Coverage 800 Evasion (%) 40 Item Schematics ----------------- Terrain Scanner | -10/Materials | Hacked Robot Schematics ------------------ None Fabricated ------------ Nothing Repaired ---------- Nothing Alien Tech Used ----------------- None Achievements -------------- None Challenges ------------ None Game ------ Seed ConstructTerrorStripper Manual? 1 Play Time 00:20:51 Cumulative 348.7 hours Start 2025.08.25 @ 23:38:22 End 2025.08.26 @ 00:17:42 Sessions 1 Manual Loads 0 Difficulty Rogue Special Mode None Game No. 296 Rogue 296 Adventurer 0 Explorer 0 Win Type - Total 2 Types 2/0/0/0/0/0/0/0/0/0 Lore% 76 Gallery% 68 Achievement% 54 Wizard Run 0 Options --------- Layout 2 ASCII 1 Keyboard 1 Movement Numpad Keybinds 0 Fullscreen 2 Font 32/TamsynBold Map View 50x44 Zoom Use 0% Tactical HUD 1 Map Filters NONE Filters NONE Steam 1 RUN: 78aa022b-81dd-4e46-846a-b7167fe20084